bitfinex/quotes_ETHUSD_20230113
["timestamp","ask_amount","ask_price","bid_price","bid_amount"]
[1673601570000,26.96834272,1410.9,1410.8,2.76694328]
[1673601574595,34.65620698,1410.9,1410.8,2.14204328]
[1673601574839,44.62081502,1410.9,1410.8,2.10660328]
[1673601575018,50.50786759,1410.9,1410.8,2.10660328]
[1673601575878,48.38843285,1410.9,1410.8,2.10660328]
[1673601577034,36.78600333,1410.9,1410.8,2.10660328]
[1673601577254,36.64411707,1410.9,1410.8,2.10660328]
[1673601577685,32.82353793,1410.9,1410.8,2.10660328]
[1673601577900,32.29193793,1410.9,1410.8,2.10660328]
[1673601578066,32.84381206,1410.9,1410.8,2.10660328]
[1673601578277,32.44710903,1410.9,1410.8,2.10660328]
[1673601578715,32.84378174,1410.9,1410.8,2.10660328]
[1673601578937,32.44710903,1410.9,1410.8,2.10660328]
[1673601579380,32.84369417,1410.9,1410.8,2.10660328]
[1673601580278,33.07369417,1410.9,1410.8,2.10660328]
[1673601580716,32.67710903,1410.9,1410.8,2.10660328]
[1673601581158,31.61699529,1410.9,1410.8,2.10660328]
[1673601581562,31.38699529,1410.9,1410.8,2.10660328]
[1673601582434,25.49994272,1410.9,1410.8,2.10660328]
[1673601584817,26.56005646,1410.9,1410.8,2.10660328]
[1673601585285,27.71713424,1410.9,1410.8,2.10660328]
[1673601585811,28.77720772,1410.9,1410.8,2.10660328]
[1673601587231,27.71713424,1410.9,1410.8,2.10660328]
[1673601587443,33.93255241,1410.9,1410.8,2.10660328]
[1673601589490,33.93255241,1410.9,1410.7,0.02651218]
[1673601589669,3.60633272,1410.8,1410.7,0.02651218]
[1673601589874,26.87084272,1410.8,1410.7,0.02651218]
[1673601590226,28.03003293,1410.8,1410.7,0.02651218]
[1673601590446,31.09409393,1410.8,1410.7,0.02651218]
[1673601593172,31.32409393,1410.8,1410.7,0.02651218]
[1673601593347,32.91192507,1410.8,1410.7,0.02651218]
[1673601593766,32.51509393,1410.8,1410.7,0.02651218]
[1673601596320,32.51509393,1410.8,1410.7,0.02432349]
[1673601597534,31.45490372,1410.8,1410.7,0.02432349]
[1673601598055,17.88167272,1410.8,1410.7,0.02432349]
[1673601598272,10.79350272,1410.8,1410.7,0.02432349]
[1673601598489,0.099,1410.8,1410.7,0.02432349]
[1673601598741,7.18667,1410.9,1410.7,1.7827415]
[1673601598918,7.18667,1410.9,1410.7,0.02432349]
[1673601599352,0.099,1410.9,1410.7,0.02432349]
[1673601599680,7.0873,1411.0,1410.7,0.25464183]
[1673601599681,7.1863,1411.0,1410.7,0.25464183]
[1673601599898,0.099,1411.0,1410.7,3.45664183]
[1673601600208,20.30271758,1411.1,1410.7,1.45664183]
[1673601600432,23.57660293,1411.1,1410.8,0.14566418]
[1673601600655,23.04500293,1411.1,1410.8,0.14566418]
[1673601600792,30.4643785,1411.1,1410.8,0.14566418]
[1673601601230,30.13194293,1411.1,1410.8,0.14566418]
[1673601601679,30.46433587,1411.1,1410.8,0.14566418]
[1673601601861,37.55127587,1411.1,1410.8,0.14566418]
[1673601602097,37.21888293,1411.1,1410.8,0.14566418]
[1673601604828,1.15919021,1411.1,1410.8,0.14566418]
[1673601605044,2.12207914,1411.2,1410.8,15.52396418]
[1673601605045,24.24242521,1411.2,1410.8,15.52396418]
[1673601605263,15.66421607,1411.2,1410.9,5.31060382]
[1673601605411,15.66421607,1411.2,1410.9,1.55239642]
[1673601605412,15.33185021,1411.2,1410.9,1.55239642]
[1673601606205,1.15919021,1411.2,1410.9,2.75439642]
[1673601606375,1.06019021,1411.2,1411.0,0.27543964]
[1673601606567,1.06019021,1411.2,1411.0,1.47743964]
[1673601606773,15.33094021,1411.3,1411.0,1.47743964]
[1673601607040,8.24496021,1411.3,1411.0,1.47743964]
[1673601607731,0.099,1411.3,1411.2,1.191]
[1673601607938,1.06019021,1411.4,1411.2,2.01875]
[1673601608566,4.66652293,1411.4,1411.1,1.268]
[1673601608771,1.06019021,1411.3,1411.1,3.0]
[1673601609029,8.14603021,1411.3,1411.1,3.0]
[1673601609208,10.24503021,1411.3,1411.1,3.0]
[1673601609421,24.41653021,1411.3,1411.1,3.0]
[1673601609772,2.0,1411.2,1411.0,7.9473]
[1673601610031,9.08638,1411.2,1410.9,4.26]
[1673601610201,9.18538,1411.2,1411.0,3.0]
[1673601610359,7.18538,1411.2,1410.9,4.26]
[1673601610570,7.18538,1411.2,1410.9,4.194]
[1673601611194,9.18538,1411.2,1410.9,11.28161]
[1673601611882,7.18538,1411.2,1410.9,11.28161]
[1673601612245,7.18538,1411.2,1410.9,4.194]
[1673601612456,14.27176,1411.2,1410.9,4.194]
[1673601613330,24.29450131,1411.2,1410.9,4.194]
[1673601614421,25.35469152,1411.2,1410.9,4.194]
[1673601614618,24.29450131,1411.2,1410.9,4.194]
[1673601615558,24.29450131,1411.2,1410.9,3.0]
[1673601617202,27.90083403,1411.2,1410.9,3.0]
[1673601617646,27.90083403,1411.2,1410.9,4.202]
[1673601617915,24.96447272,1411.2,1410.9,4.202]
[1673601620489,26.02466293,1411.2,1410.9,4.202]
[1673601620944,26.02466293,1411.2,1410.9,3.0]
[1673601621389,26.02466293,1411.2,1410.9,2.99723883]
[1673601621535,2.0,1411.1,1410.9,2.99723883]
[1673601621746,7.08717,1411.0,1410.9,2.99723883]
[1673601621971,7.08717,1411.0,1410.8,9.1493]
[1673601621972,10.79250272,1411.0,1410.8,1.268]
[1673601622187,24.96684272,1411.0,1410.7,10.90452349]
[1673601622411,24.96684272,1411.0,1410.7,1.22632349]
[1673601623690,0.099,1411.0,1410.8,1.202]
[1673601623908,29.35874629,1411.1,1410.8,1.202]
[1673601624214,36.44562629,1411.1,1410.9,1.197]
[1673601624389,33.11156,1411.1,1410.9,1.197]
[1673601624921,24.64666,1411.1,1410.9,1.197]
[1673601626486,35.33987272,1411.1,1410.9,1.197]
[1673601629213,24.96597272,1411.1,1410.9,1.197]
[1673601629849,24.96597272,1411.1,1410.8,4.268]
[1673601630107,24.96597272,1411.1,1410.8,4.202]
[1673601631416,28.51912419,1411.1,1410.8,4.202]
[1673601633056,29.5793144,1411.1,1410.8,4.202]
[1673601633264,28.51912419,1411.1,1410.8,4.202]
[1673601633430,29.5793144,1411.1,1410.8,4.202]
[1673601633641,6.39612293,1411.0,1410.7,0.09032349]
[1673601633862,6.39612293,1411.0,1410.7,0.02432349]
[1673601633863,25.92953293,1410.9,1410.7,0.02432349]
[1673601634081,5.60633272,1410.8,1410.7,0.02432349]
[1673601634309,24.96984272,1410.8,1410.7,0.02432349]
[1673601634904,21.36351,1410.8,1410.7,0.02432349]
[1673601640503,24.96984272,1410.8,1410.7,0.02432349]
[1673601640681,28.41821668,1410.8,1410.7,0.02432349]
[1673601642799,29.47840689,1410.8,1410.7,0.02432349]
[1673601643016,30.01010689,1410.8,1410.7,0.02432349]
[1673601643420,28.94991668,1410.8,1410.7,0.02432349]
[1673601644099,30.01010689,1410.8,1410.7,0.02432349]
[1673601645155,30.01010689,1410.8,1410.7,0.02049237]
[1673601645463,28.94991668,1410.8,1410.7,0.02049237]
[1673601647420,18.25541396,1410.8,1410.7,0.02049237]
[1673601647637,11.16724396,1410.8,1410.7,0.02049237]
[1673601647856,10.63554396,1410.8,1410.7,0.02049237]
[1673601651653,0.099,1410.8,1410.7,0.02049237]
[1673601651874,30.05622,1410.9,1410.7,0.02049237]
[1673601652090,33.66255272,1410.9,1410.7,0.02049237]
[1673601652315,2.0,1410.8,1410.7,0.02049237]
[1673601652643,9.08817,1410.8,1410.7,0.02049237]
[1673601652810,7.18717,1410.8,1410.7,0.02049237]
[1673601654005,17.74762229,1410.8,1410.7,0.02049237]
[1673601658958,24.83579229,1410.8,1410.7,0.02049237]
[1673601662958,17.74762229,1410.8,1410.7,0.02049237]
[1673601666564,0.099,1410.8,1410.7,0.02049237]
[1673601666777,0.5316,1410.9,1410.7,1.21249237]
[1673601666996,0.5316,1410.9,1410.7,2.97097259]
[1673601667348,0.5316,1410.9,1410.7,3.87075462]
[1673601667725,0.52846884,1410.9,1410.7,3.87075462]
[1673601668906,0.52846884,1410.9,1410.7,10.95942462]
[1673601669316,0.52846884,1410.9,1410.7,12.02038571]
[1673601670085,0.52846884,1410.9,1410.8,2.96038379]
[1673601670341,0.52846884,1410.9,1410.8,12.13629774]
[1673601670460,0.52846884,1410.9,1410.8,19.22446774]
[1673601671307,11.38963028,1411.1,1410.8,19.22446774]
[1673601671517,1.06019021,1411.0,1410.8,17.46608395]
[1673601671730,13.38963028,1411.1,1410.9,1.7466084]
[1673601671978,11.38963028,1411.1,1410.9,1.7466084]
[1673601672138,3.04133028,1411.1,1410.9,1.7466084]
[1673601672358,1.06019021,1411.1,1410.9,1.7466084]
[1673601674239,8.14689021,1411.1,1410.9,1.7466084]
[1673601674455,8.24589021,1411.1,1410.9,1.7466084]
[1673601677008,8.24589021,1411.1,1411.0,0.17466084]
[1673601677345,8.24589021,1411.1,1410.9,1.7466084]
[1673601678273,0.099,1411.1,1410.9,2.9486084]
[1673601678476,10.5012,1411.2,1411.0,1.195]
[1673601678709,0.099,1411.2,1411.0,15.36903]
[1673601678950,10.13371032,1411.3,1411.1,1.536903]
[1673601679080,1.45041032,1411.3,1411.1,1.536903]
[1673601679291,1.35141032,1411.3,1411.1,1.536903]
[1673601679725,51.89980388,1411.4,1411.1,1.536903]
[1673601679726,50.84055935,1411.4,1411.1,12.825493]
[1673601679934,50.84055935,1411.4,1411.2,1.2825493]
[1673601679935,18.86998021,1411.4,1411.2,1.2825493]
[1673601680242,18.86998021,1411.4,1411.1,12.891493]
[1673601680243,10.12606863,1411.4,1411.1,12.891493]
[1673601680471,0.05,1411.2,1411.1,12.825493]
[1673601682550,0.05,1411.3,1411.1,12.825493]
[1673601687385,0.05,1411.3,1411.1,19.912153]
[1673601688640,39.50277014,1411.5,1411.1,19.912153]
[1673601688879,0.05,1411.3,1411.1,18.37525]
[1673601689432,0.05,1411.3,1411.1,17.17325]
[1673601689920,0.05,1411.3,1411.1,18.37525]
[1673601690335,0.05,1411.3,1411.1,11.28859]
[1673601690567,0.05,1411.3,1411.1,18.37525]
[1673601690744,29.41307935,1411.5,1411.2,3.034525]
[1673601691106,29.67979437,1411.5,1411.2,8.28314]
[1673601691496,22.59498437,1411.5,1411.2,15.3693]
[1673601691719,20.73769021,1411.5,1411.2,15.3693]
[1673601692473,21.00440523,1411.5,1411.2,8.28314]
[1673601692639,21.00440523,1411.5,1411.2,11.630444]
[1673601692846,0.05,1411.3,1411.2,11.630444]
[1673601694534,0.05,1411.3,1411.2,18.716604]
[1673601694890,20.20629021,1411.5,1411.2,18.716604]
[1673601695055,0.05,1411.3,1411.2,18.716604]
[1673601696147,0.05,1411.3,1411.2,11.630444]
[1673601696361,0.05,1411.3,1411.2,18.716604]
[1673601697567,0.05,1411.3,1411.2,11.630444]
[1673601698464,0.05,1411.3,1411.2,4.544304]
[1673601699282,0.05,1411.3,1411.2,1.197]
[1673601701154,7.18421,1411.4,1411.2,1.197]
[1673601701365,8.24440021,1411.4,1411.2,1.197]
[1673601701575,7.18421,1411.4,1411.2,1.197]
[1673601701787,8.24440021,1411.4,1411.1,19.29415]
[1673601701989,8.24440021,1411.4,1411.1,23.601079]
[1673601702200,15.32961021,1411.4,1411.1,16.514829]
[1673601702411,15.32961021,1411.4,1411.1,12.1419]
[1673601703270,0.05,1411.3,1411.1,12.1419]
[1673601703583,9.1357,1411.3,1411.1,10.9509]
[1673601703799,9.2347,1411.3,1411.1,10.9509]
[1673601703990,16.3204,1411.3,1411.1,10.9509]
[1673601704205,17.38059021,1411.3,1411.1,10.9509]
[1673601704412,17.38059021,1411.3,1411.1,3.0]
[1673601704740,20.7209199,1411.3,1411.0,3.066]
[1673601704962,17.38059021,1411.3,1411.0,3.066]
[1673601705459,17.38059021,1411.3,1411.0,3.0]
[1673601705665,28.07262293,1411.3,1411.0,3.0]
[1673601706563,29.66320207,1411.3,1411.0,3.0]
[1673601707501,24.46629021,1411.3,1411.0,3.0]
[1673601707930,29.66320207,1411.3,1411.0,3.0]
[1673601708137,29.66320207,1411.3,1410.9,3.066]
[1673601708138,15.23315021,1411.2,1410.9,3.066]
[1673601708353,15.33215021,1411.2,1410.9,3.0]
[1673601708658,2.0,1411.1,1410.9,3.0]
[1673601708867,9.08673,1411.1,1410.9,3.0]
[1673601709088,9.18573,1411.1,1410.9,3.0]
[1673601709471,7.18573,1411.1,1410.9,3.0]
[1673601709678,0.099,1411.1,1410.9,28.48910718]
[1673601710008,20.09519021,1411.3,1411.1,7.08666]
[1673601710187,19.56369021,1411.3,1411.1,7.08666]
[1673601710403,1.15919021,1411.3,1411.1,21.25998]
[1673601710630,1.06019021,1411.3,1411.1,23.7503254]
[1673601710843,1.06019021,1411.3,1411.2,1.192]
[1673601711557,1.11019021,1411.3,1411.2,1.192]
[1673601711771,0.05,1411.3,1411.2,1.192]
[1673601711978,0.05,1411.3,1411.2,9.47816]
[1673601712224,0.05,1411.3,1411.2,33.02903341]
[1673601712413,0.05,1411.3,1411.2,31.02903341]
[1673601712608,0.05,1411.3,1411.2,34.46546846]
[1673601712821,0.05,1411.3,1411.2,27.37930846]
[1673601714444,0.05,1411.3,1411.2,34.46546846]
[1673601715643,2.79225873,1411.6,1411.2,34.46546846]
[1673601715948,2.79225873,1411.6,1411.4,8.28716]
[1673601716848,2.79225873,1411.6,1411.4,8.28317471]
[1673601717492,2.79225873,1411.6,1411.4,1.19801471]
[1673601717906,3.06019021,1411.5,1411.3,3.0]
[1673601718124,1.33941608,1411.5,1411.3,3.0]
[1673601718372,1.33941608,1411.5,1411.2,4.266]
[1673601718550,1.06019021,1411.5,1411.2,4.2]
[1673601719511,8.14493021,1411.5,1411.2,6.67097539]
[1673601719716,8.24393021,1411.5,1411.2,11.28612]
[1673601719932,8.24393021,1411.5,1411.2,14.81805648]
[1673601720539,8.24393021,1411.5,1411.3,1.195]
[1673601720540,1.15919021,1411.5,1411.3,1.195]
[1673601720782,2.79225873,1411.6,1411.4,0.1195]
[1673601721001,1.20167959,1411.6,1411.4,10.40644]
[1673601721314,0.14148938,1411.6,1411.4,24.57676]
[1673601722329,0.14148938,1411.6,1411.5,8.28166]
[1673601725214,0.14148938,1411.6,1411.5,15.36632]
[1673601725537,0.14148938,1411.6,1411.5,20.750196]
[1673601726966,0.14148938,1411.6,1411.5,27.834856]
[1673601736698,0.14148938,1411.6,1411.5,33.19851284]
[1673601736875,0.14148938,1411.6,1411.5,42.61295923]
[1673601737500,0.15455823,1411.7,1411.6,2.12492697]
[1673601737717,0.15455823,1411.7,1411.6,45.95353939]
[1673601738412,0.15455823,1411.7,1411.6,46.52921445]
[1673601739005,0.15455823,1411.7,1411.6,47.59017554]
[1673601739178,0.15455823,1411.7,1411.6,46.52921445]
[1673601739599,0.15455823,1411.7,1411.6,47.59017554]
[1673601739794,0.15455823,1411.7,1411.6,46.52921445]
[1673601740429,0.15455823,1411.7,1411.6,48.12157554]
[1673601740639,0.15455823,1411.7,1411.6,47.06061445]
[1673601741199,0.15455823,1411.7,1411.6,48.12157554]
[1673601741351,0.15455823,1411.7,1411.6,47.59017554]
[1673601741558,0.14806688,1411.8,1411.6,50.37264231]
[1673601741775,0.14806688,1411.8,1411.7,19.36180796]
[1673601741994,0.14806688,1411.8,1411.7,44.67371905]
[1673601742244,0.14806688,1411.8,1411.7,40.09158143]
[1673601742436,0.14806688,1411.8,1411.7,44.18778004]
[1673601742768,0.14806688,1411.8,1411.7,48.25028143]
[1673601742932,0.14806688,1411.8,1411.7,48.24110435]
[1673601743141,0.14806688,1411.8,1411.7,48.24110983]
[1673601743381,0.14806688,1411.8,1411.7,52.33739425]
[1673601743921,0.14806688,1411.8,1411.7,51.76171919]
[1673601744641,0.14806688,1411.8,1411.7,47.66543477]
[1673601744971,0.14806688,1411.8,1411.7,45.20357107]
[1673601745569,0.14806688,1411.8,1411.7,41.05324695]
[1673601746758,0.14806688,1411.8,1411.7,37.44691423]
[1673601751409,0.14806688,1411.8,1411.7,29.28821423]
[1673601752672,1.33306688,1411.8,1411.7,14.1673]
[1673601752833,2.53506688,1411.8,1411.6,0.19092697]
[1673601753042,2.53506688,1411.8,1411.6,0.12492697]
[1673601753318,9.61825688,1411.8,1411.6,0.12492697]
[1673601753510,0.96182569,1411.7,1411.6,0.12492697]
[1673601753707,2.96182569,1411.7,1411.6,0.12492697]
[1673601755043,4.16382569,1411.7,1411.6,0.12492697]
[1673601755259,11.24747569,1411.7,1411.6,0.12492697]
[1673601755608,11.34647569,1411.7,1411.6,0.12492697]
[1673601761195,29.12010841,1411.7,1411.6,0.12492697]
[1673601761503,30.71159862,1411.7,1411.6,0.12492697]
[1673601761660,36.19521894,1411.7,1411.6,0.12492697]
[1673601762087,49.07739808,1411.7,1411.6,0.12492697]
[1673601762337,49.07739808,1411.7,1411.1,24.79402317]
[1673601762338,14.16975,1411.5,1411.1,2.47373208]
[1673601762525,1.193,1411.3,1411.0,8.21402109]
[1673601762870,1.193,1411.3,1411.1,1.75785067]
[1673601764127,1.193,1411.3,1411.1,4.75785067]
[1673601764293,1.193,1411.3,1411.1,3.0]
[1673601764507,5.096258,1411.3,1411.1,3.0]
[1673601764709,5.195258,1411.3,1411.1,3.0]
[1673601766283,4.002258,1411.3,1411.1,3.0]
[1673601766493,3.903258,1411.3,1411.1,3.0]
[1673601768632,3.903258,1411.3,1411.1,10.08666]
[1673601769762,5.105258,1411.3,1411.1,10.08666]
[1673601769977,5.204258,1411.3,1411.1,10.08666]
[1673601770187,5.204258,1411.3,1411.1,3.0]
[1673601770442,5.204258,1411.3,1411.1,2.9465068]
[1673601770975,12.289988,1411.3,1411.1,2.9465068]
[1673601771184,5.204258,1411.3,1411.1,2.9465068]
[1673601772809,0.5204258,1411.2,1411.1,2.9465068]
[1673601773019,5.204258,1411.3,1411.1,2.9465068]
[1673601773259,3.198,1411.2,1411.1,2.9465068]
[1673601773696,1.198,1411.2,1411.1,2.9465068]
[1673601774108,1.198,1411.2,1411.1,3.0]
[1673601774570,1.198,1411.2,1411.0,3.066]
[1673601774778,3.8437808,1411.2,1411.0,3.0]
[1673601774989,1.199,1411.1,1411.0,3.0]
[1673601775210,1.199,1411.1,1410.9,7.15338]
[1673601775361,1.199,1411.1,1410.9,7.08738]
[1673601776985,1.297,1411.2,1410.9,21.26272]
[1673601777197,18.606358,1411.3,1411.0,2.126272]
[1673601777198,0.6305,1411.3,1411.0,2.126272]
[1673601777353,28.75425,1411.4,1411.1,7.08666]
[1673601781139,35.83958,1411.4,1411.1,7.08666]
[1673601781819,1.202,1411.3,1411.1,7.08666]
[1673601782008,1.198,1411.2,1411.0,0.066]
[1673601782233,4.734999,1411.2,1411.0,3.0]
[1673601783532,2.734999,1411.2,1411.0,3.0]
[1673601783859,4.734999,1411.2,1411.0,3.0]
[1673601784016,2.734999,1411.2,1411.0,3.0]
[1673601785223,4.734999,1411.2,1411.0,3.0]
[1673601785384,2.734999,1411.2,1411.0,3.0]
[1673601786555,4.734999,1411.2,1411.0,3.0]
[1673601786799,2.4734999,1411.1,1410.9,14.24082]
[1673601786954,10.7622799,1411.1,1410.8,17.352829]
[1673601787168,10.8612799,1411.1,1410.8,15.06726]
[1673601788689,10.8612799,1411.1,1410.8,16.12822109]
[1673601789071,8.8612799,1411.1,1410.8,16.12822109]
[1673601789278,8.8612799,1411.1,1410.9,1.75808205]
[1673601789491,0.88612799,1411.0,1410.8,16.19422109]
[1673601789705,8.8612799,1411.1,1410.8,16.12822109]
[1673601790790,8.8612799,1411.1,1410.8,17.71968786]
[1673601792115,8.8612799,1411.1,1410.8,16.12822109]
[1673601792777,8.8612799,1411.1,1410.8,17.71968786]
[1673601792997,8.8612799,1411.1,1410.9,1.06096109]
[1673601793224,0.88612799,1411.0,1410.9,1.06096109]
[1673601793518,8.8612799,1411.1,1410.8,24.87362786]
[1673601793735,20.2972799,1411.1,1410.9,1.06096109]
[1673601794256,20.2972799,1411.1,1410.8,23.98222786]
[1673601794569,20.2972799,1411.1,1410.8,16.82827786]
[1673601794783,19.0952799,1411.1,1410.9,1.06096109]
[1673601795468,1.90952799,1411.0,1410.9,1.06096109]
[1673601798816,1.90952799,1411.0,1410.9,2.65242786]
[1673601800350,19.0952799,1411.1,1410.9,2.65242786]
[1673601800563,19.0952799,1411.1,1410.9,1.06096109]
[1673601800772,19.0952799,1411.1,1411.0,1.06096109]
[1673601801211,19.0952799,1411.1,1410.9,2.65242786]
[1673601802029,3.90952799,1411.0,1410.9,1.06096109]
[1673601802588,1.90952799,1411.0,1410.9,1.06096109]
[1673601806985,3.90952799,1411.0,1410.9,1.06096109]
[1673601807176,18.08386799,1411.0,1410.8,2.71842786]
[1673601807386,18.18286799,1411.0,1410.8,2.65242786]
[1673601807633,1.8182868,1410.9,1410.8,2.65242786]
[1673601807848,1.8182868,1410.9,1410.8,1.06096109]
[1673601808052,8.9059568,1410.9,1410.8,5.65242786]
[1673601808268,9.0049568,1410.9,1410.8,4.06096109]
[1673601808550,19.69895952,1410.9,1410.8,4.06096109]
[1673601809499,19.69895952,1410.9,1410.8,2.8192444]
[1673601809771,19.69895952,1410.9,1410.8,1.75828331]
[1673601809968,26.78662952,1410.9,1410.8,1.75828331]
[1673601810119,27.01662952,1410.9,1410.8,1.75828331]
[1673601810333,27.01662952,1410.9,1410.8,1.7583576]
[1673601810592,2.0,1410.8,1410.7,1.14745346]
[1673601810915,22.68433567,1410.8,1410.7,2.83981395]
[1673601811067,22.78333567,1410.8,1410.7,2.83981395]
[1673601811856,30.10150567,1410.8,1410.7,2.83981395]
[1673601812071,31.29950567,1410.8,1410.7,2.83981395]
[1673601814149,31.29950567,1410.8,1410.7,1.77885286]
[1673601814759,30.29950567,1410.8,1410.7,1.77885286]
[1673601814993,36.11937388,1410.8,1410.7,0.02049237]
[1673601815910,32.03120567,1410.8,1410.7,0.02049237]
[1673601816800,36.1185384,1410.8,1410.7,0.02049237]
[1673601816999,36.11807434,1410.8,1410.7,0.02049237]
[1673601817211,32.03120567,1410.8,1410.7,0.02049237]
[1673601820704,36.11757531,1410.8,1410.7,0.02049237]
[1673601820923,32.03120567,1410.8,1410.7,0.02049237]
[1673601821074,36.11712538,1410.8,1410.7,0.02049237]
[1673601822670,36.14537637,1410.8,1410.7,0.02049237]
[1673601825656,37.20413658,1410.8,1410.7,0.02049237]
[1673601825968,49.38921145,1410.8,1410.7,0.02049237]
[1673601826290,50.97979059,1410.8,1410.7,0.02049237]
[1673601826444,57.90231145,1410.8,1410.7,0.02049237]
[1673601827178,45.71723658,1410.8,1410.7,0.02049237]
[1673601827429,44.65847637,1410.8,1410.7,0.02049237]
[1673601827637,44.42847637,1410.8,1410.7,0.02049237]
[1673601827826,40.31430567,1410.8,1410.7,0.02049237]
[1673601828170,38.78260567,1410.8,1410.7,0.02049237]
[1673601828488,39.31430567,1410.8,1410.7,0.02049237]
[1673601829701,10.08883295,1410.8,1410.7,0.02049237]
[1673601829931,8.37217,1410.8,1410.7,0.02049237]
[1673601830132,15.46034,1410.8,1410.7,0.02049237]
[1673601830984,8.37217,1410.8,1410.7,0.02049237]
[1673601835210,8.90387,1410.8,1410.7,0.02049237]
[1673601835426,0.099,1410.8,1410.7,1.77887431]
[1673601835762,10.6081,1410.9,1410.7,1.36702689]
[1673601835960,0.099,1410.9,1410.7,17.30273883]
[1673601836152,32.84428,1411.1,1410.8,1.75825843]
[1673601836345,36.45061272,1411.1,1410.8,1.75825843]
[1673601836557,36.45061272,1411.1,1410.8,1.73686153]
[1673601837004,28.83193272,1411.1,1410.8,1.73686153]
[1673601837844,28.83193272,1411.1,1410.7,15.61015689]
[1673601838059,28.83193272,1411.1,1410.7,8.45549689]
[1673601838289,28.83193272,1411.1,1410.8,1.75824896]
[1673601838621,29.36353272,1411.1,1410.8,1.75824896]
[1673601838923,29.36353272,1411.1,1410.8,3.49507055]
[1673601839096,36.45066272,1411.1,1410.8,1.73682159]
[1673601839312,36.44709638,1411.1,1410.8,1.73682159]
[1673601844128,36.44709638,1411.1,1410.9,1.75818743]
[1673601844339,36.44709638,1411.1,1410.8,2.86378268]
[1673601844596,36.44709638,1411.1,1410.8,2.79778268]
[1673601844920,36.44709638,1411.1,1410.8,1.73682159]
[1673601845341,36.44709638,1411.1,1410.8,2.79778268]
[1673601845492,36.44709638,1411.1,1410.9,1.75818172]
[1673601846228,25.49449638,1411.1,1410.9,1.75818172]
[1673601848991,25.49449638,1411.1,1410.8,1.80282159]
[1673601849387,25.49449638,1411.1,1410.7,18.39243366]
[1673601849522,25.49449638,1411.1,1410.8,1.75823382]
[1673601850563,25.49449638,1411.1,1410.8,2.81919491]
[1673601851894,4.23693272,1411.1,1410.8,2.81919491]
[1673601852110,18.31154272,1411.1,1410.8,2.81919491]
[1673601852311,25.49767272,1411.1,1410.8,2.81919491]
[1673601853793,18.41054272,1411.1,1410.8,2.81919491]
[1673601854458,18.41054272,1411.1,1410.8,1.06096109]
[1673601854700,18.41054272,1411.1,1410.7,27.70021266]
[1673601854868,18.41054272,1411.1,1410.8,1.75820306]
[1673601856216,11.32359272,1411.1,1410.8,9.90727415]
[1673601856436,11.32359272,1411.1,1410.9,1.75820306]
[1673601856643,11.32359272,1411.1,1410.8,9.75886167]
[1673601856870,11.32359272,1411.1,1410.8,9.69286167]
[1673601857074,11.32359272,1411.1,1410.8,10.75382276]
[1673601857285,11.32359272,1411.1,1410.8,9.69286167]
[1673601858108,11.32359272,1411.1,1410.8,10.75382276]
[1673601858824,11.32359272,1411.1,1410.9,1.75816747]
[1673601859198,11.32359272,1411.1,1410.8,10.81982276]
[1673601859505,11.32359272,1411.1,1410.8,10.75382276]
[1673601859876,11.32359272,1411.1,1410.9,1.75816661]
[1673601860569,11.32359272,1411.1,1410.8,10.81982276]
[1673601860736,11.32359272,1411.1,1410.9,1.75814794]
[1673601862295,11.32359272,1411.1,1410.8,12.32482276]
[1673601862504,11.32359272,1411.1,1410.8,12.25882276]
[1673601862755,11.32359272,1411.1,1410.9,1.75817637]
[1673601862973,11.32359272,1411.1,1410.8,12.32482276]
[1673601863302,11.32359272,1411.1,1410.9,1.75817967]
[1673601863661,11.32359272,1411.1,1410.8,9.72007109]
[1673601863882,11.32359272,1411.1,1410.9,1.7581792]
[1673601864078,11.32359272,1411.1,1410.8,9.72007109]
[1673601864417,11.32359272,1411.1,1410.9,1.75813895]
[1673601864967,7.18566,1411.1,1410.9,1.75813895]
[1673601867549,7.18566,1411.1,1410.9,2.81910004]
[1673601868341,7.18566,1411.1,1410.8,18.39964786]
[1673601868496,0.099,1411.1,1410.9,2.81908104]
[1673601868724,42.25526021,1411.2,1410.9,2.81908104]
[1673601869054,38.77498293,1411.2,1410.9,2.81908104]
[1673601869332,24.60189293,1411.2,1410.9,9.90670104]
[1673601869564,23.54313272,1411.2,1411.0,1.75811995]
[1673601870210,4.23683272,1411.2,1411.0,1.75811995]
[1673601870534,4.13783272,1411.2,1411.0,1.75811995]
[1673601871117,5.19659293,1411.2,1411.0,1.75811995]
[1673601871325,5.29559293,1411.2,1411.0,1.75811995]
[1673601872187,12.38182293,1411.2,1411.0,1.75811995]
[1673601872594,5.29559293,1411.2,1411.0,1.75811995]
[1673601873027,5.29559293,1411.2,1411.0,2.81908104]
[1673601874649,5.29559293,1411.2,1411.0,1.75811995]
[1673601874814,5.29559293,1411.2,1411.0,1.06096109]
[1673601875175,5.29559293,1411.2,1411.0,2.81903735]
[1673601875392,12.83822917,1411.2,1411.0,2.81903735]
[1673601877154,21.60910557,1411.2,1411.0,1.75807626]
[1673601877349,21.60910557,1411.2,1410.9,12.04097234]
[1673601877549,21.60910557,1411.2,1411.0,1.75813561]
[1673601878908,1.05876021,1411.1,1411.0,1.75813561]
[1673601879884,28.60148831,1411.2,1411.0,1.75813561]
[1673601880104,3.60633272,1411.1,1410.8,4.34277791]
[1673601880309,3.60633272,1411.1,1410.7,2.6745035]
[1673601880310,1.06243372,1410.9,1410.7,0.08649237]
[1673601880643,1.06243372,1410.9,1410.7,0.02049237]
[1673601880644,23.04743529,1410.8,1410.7,0.02049237]
[1673601880841,22.06277473,1410.8,1410.7,0.02049237]
[1673601881202,22.70259007,1410.8,1410.7,0.02049237]
[1673601881453,22.06277473,1410.8,1410.7,0.02049237]
[1673601881669,29.15094473,1410.8,1410.7,0.02049237]
[1673601882689,29.68264473,1410.8,1410.7,0.02049237]
[1673601883727,36.85362013,1410.8,1410.7,0.02049237]
[1673601883952,38.97305487,1410.8,1410.7,0.02049237]
[1673601884165,47.66045487,1410.8,1410.7,0.02049237]
[1673601884424,47.3178769,1410.8,1410.7,0.02049237]
[1673601884560,48.37800629,1410.8,1410.7,0.02049237]
[1673601885346,47.3178769,1410.8,1410.7,0.02049237]
[1673601886404,48.37729527,1410.8,1410.7,0.02049237]
[1673601888035,48.77266957,1410.8,1410.7,0.02049237]
[1673601888261,51.77266957,1410.8,1410.7,0.02049237]
[1673601888519,50.17901899,1410.8,1410.7,0.02049237]